[Event "Titled Tuesday Blitz October 25 Late 2022"]
[White "Fernandez De La Vara, Arnaldo"]
[Black "Ashiku, Franc"]
[WhiteFideId "3518388"]
[BlackFideId "4700066"]
[WhiteElo "2387"]
[BlackElo "2306"]
[Result "0-1"]
[Round "10"]
[TimeControl "180+1"]
[Date "2022.10.26"]
[WhiteClock "0:00:02"]
[BlackClock "0:00:16"]

1. Nf3 {[%clk 0:03:00]}  Nf6 {[%clk 0:02:59]} 2. b3 {[%clk 0:03:00]}  g6 {[%clk 0:02:53]} 3. Bb2 {[%clk 0:03:01]}  Bg7 {[%clk 0:02:54]} 4. g3 {[%clk 0:03:02]}  d6 {[%clk 0:02:54]} 5. d4 {[%clk 0:03:02]}  O-O {[%clk 0:02:53]} 6. c4 {[%clk 0:03:02]}  Ne4 {[%clk 0:02:35]} 7. Qc2 {[%clk 0:02:46]}  f5 {[%clk 0:02:07]} 8. Nc3 {[%clk 0:02:46]}  Nxc3 {[%clk 0:02:06]} 9. Bxc3 {[%clk 0:02:47]}  a5 {[%clk 0:01:58]} 10. Bg2 {[%clk 0:02:44]}  e6 {[%clk 0:01:53]} 11. O-O {[%clk 0:02:44]}  Nc6 {[%clk 0:01:52]} 12. d5 {[%clk 0:02:39]}  Nb4 {[%clk 0:01:52]} 13. Qd2 {[%clk 0:02:21]}  e5 {[%clk 0:01:50]} 14. a3 {[%clk 0:02:09]}  Na6 {[%clk 0:01:46]} 15. Bxa5 {[%clk 0:02:09]}  Nc5 {[%clk 0:01:46]} 16. Rab1 {[%clk 0:02:09]}  f4 {[%clk 0:01:25]} 17. Bb4 {[%clk 0:01:59]}  b6 {[%clk 0:01:03]} 18. Bxc5 {[%clk 0:01:27]}  bxc5 {[%clk 0:01:03]} 19. Qc2 {[%clk 0:01:27]}  Bf5 {[%clk 0:01:02]} 20. Qb2 {[%clk 0:01:27]}  e4 {[%clk 0:01:00]} 21. Qa2 {[%clk 0:01:21]}  exf3 {[%clk 0:00:59]} 22. Bxf3 {[%clk 0:01:22]}  Bxb1 {[%clk 0:00:58]} 23. Rxb1 {[%clk 0:01:23]}  fxg3 {[%clk 0:00:59]} 24. hxg3 {[%clk 0:01:23]}  Qf6 {[%clk 0:00:50]} 25. a4 {[%clk 0:01:22]}  g5 {[%clk 0:00:50]} 26. Rf1 {[%clk 0:01:08]}  Qg6 {[%clk 0:00:50]} 27. Bg4 {[%clk 0:01:05]}  h5 {[%clk 0:00:43]} 28. Be6+ {[%clk 0:01:05]}  Kh8 {[%clk 0:00:43]} 29. a5 {[%clk 0:01:06]}  Bd4 {[%clk 0:00:42]} 30. e3 {[%clk 0:00:59]}  Be5 {[%clk 0:00:41]} 31. a6 {[%clk 0:00:56]}  h4 {[%clk 0:00:38]} 32. g4 {[%clk 0:00:48]}  h3 {[%clk 0:00:35]} 33. Bf5 {[%clk 0:00:33]}  Rxf5 {[%clk 0:00:34]} 34. gxf5 {[%clk 0:00:34]}  Qxf5 {[%clk 0:00:34]} 35. f3 {[%clk 0:00:34]}  Qd3 {[%clk 0:00:28]} 36. Re1 {[%clk 0:00:25]}  Bc3 {[%clk 0:00:20]} 37. Rf1 {[%clk 0:00:11]}  Qxe3+ {[%clk 0:00:20]} 38. Kh1 {[%clk 0:00:12]}  Be5 {[%clk 0:00:19]} 39. a7 {[%clk 0:00:09]}  Qf4 {[%clk 0:00:19]} 40. Rf2 {[%clk 0:00:09]}  Kg7 {[%clk 0:00:20]} 41. Rf1 {[%clk 0:00:02]}  Rxa7 {[%clk 0:00:18]} 42. Qc2 {[%clk 0:00:01]}  Ra8 {[%clk 0:00:17]} 43. Rf2 {[%clk 0:00:01]}  Rf8 {[%clk 0:00:17]} 44. Qd1 {[%clk 0:00:01]}  Qg3 {[%clk 0:00:16]} 45. Rf1 {[%clk 0:00:01]}  Rf4 {[%clk 0:00:16]} 46. Rg1 {[%clk 0:00:01]}  Qxf3+ {[%clk 0:00:15]} 47. Qxf3 {[%clk 0:00:02]}  Rxf3 {[%clk 0:00:16]} 48. Rxg5+ {[%clk 0:00:02]}  Kf6 {[%clk 0:00:16]} 49. Rg7 {[%clk 0:00:03]}  Kxg7 {[%clk 0:00:15]} 50. b4 {[%clk 0:00:02]}  Rf1# {[%clk 0:00:16]} 0-1


[Site "https://www.chess.com"]

[Event "Titled Tuesday Blitz October 25 Late 2022"]
[White "Garayev, Kanan"]
[Black "Ballester Llagaria, Luis Eduardo"]
[WhiteFideId "13406671"]
[BlackFideId "2297620"]
[WhiteElo "2244"]
[BlackElo "2344"]
[Result "1-0"]
[Round "10"]
[TimeControl "180+1"]
[Date "2022.10.26"]
[WhiteClock "0:00:17"]
[BlackClock "0:00:05"]

1. c4 {[%clk 0:03:00]}  e5 {[%clk 0:02:59]} 2. Nc3 {[%clk 0:03:01]}  Nc6 {[%clk 0:03:00]} 3. Nf3 {[%clk 0:03:01]}  f5 {[%clk 0:03:00]} 4. d4 {[%clk 0:03:00]}  e4 {[%clk 0:03:01]} 5. d5 {[%clk 0:03:01]}  exf3 {[%clk 0:02:58]} 6. dxc6 {[%clk 0:03:01]}  fxg2 {[%clk 0:02:56]} 7. cxd7+ {[%clk 0:03:01]}  Qxd7 {[%clk 0:02:56]} 8. Qxd7+ {[%clk 0:03:01]}  Bxd7 {[%clk 0:02:56]} 9. Bxg2 {[%clk 0:03:02]}  O-O-O {[%clk 0:02:57]} 10. Bg5 {[%clk 0:03:01]}  Be7 {[%clk 0:02:56]} 11. Bxe7 {[%clk 0:03:01]}  Nxe7 {[%clk 0:02:57]} 12. O-O-O {[%clk 0:03:02]}  Bc6 {[%clk 0:02:57]} 13. Bxc6 {[%clk 0:02:52]}  Nxc6 {[%clk 0:02:55]} 14. Nd5 {[%clk 0:02:52]}  Rhe8 {[%clk 0:02:53]} 15. e3 {[%clk 0:02:51]}  Ne5 {[%clk 0:02:53]} 16. b3 {[%clk 0:02:49]}  c6 {[%clk 0:02:46]} 17. Nf4 {[%clk 0:02:46]}  g5 {[%clk 0:02:32]} 18. Rxd8+ {[%clk 0:02:44]}  Rxd8 {[%clk 0:02:13]} 19. Ne6 {[%clk 0:02:41]}  Rg8 {[%clk 0:01:31]} 20. f4 {[%clk 0:02:34]}  gxf4 {[%clk 0:01:16]} 21. Nxf4 {[%clk 0:02:34]}  Ng4 {[%clk 0:01:13]} 22. Rg1 {[%clk 0:02:28]}  Re8 {[%clk 0:01:12]} 23. h3 {[%clk 0:02:27]}  Nxe3 {[%clk 0:01:08]} 24. Rg7 {[%clk 0:02:28]}  Re4 {[%clk 0:01:06]} 25. Nd3 {[%clk 0:02:23]}  Rh4 {[%clk 0:01:00]} 26. Nc5 {[%clk 0:02:16]}  b6 {[%clk 0:00:48]} 27. Ne6 {[%clk 0:02:12]}  Rxh3 {[%clk 0:00:47]} 28. Rc7+ {[%clk 0:01:51]}  Kb8 {[%clk 0:00:47]} 29. Re7 {[%clk 0:01:51]}  Rh2 {[%clk 0:00:35]} 30. Nd4 {[%clk 0:01:47]}  Rh1+ {[%clk 0:00:25]} 31. Kd2 {[%clk 0:01:42]}  Nf1+ {[%clk 0:00:24]} 32. Kc3 {[%clk 0:01:39]}  Rh6 {[%clk 0:00:25]} 33. Nxf5 {[%clk 0:01:33]}  Rf6 {[%clk 0:00:22]} 34. Nd4 {[%clk 0:01:33]}  h5 {[%clk 0:00:20]} 35. b4 {[%clk 0:01:31]}  Ng3 {[%clk 0:00:19]} 36. b5 {[%clk 0:01:30]}  cxb5 {[%clk 0:00:17]} 37. cxb5 {[%clk 0:01:30]}  Kc8 {[%clk 0:00:14]} 38. Rxa7 {[%clk 0:01:23]}  Ne4+ {[%clk 0:00:13]} 39. Kb4 {[%clk 0:01:21]}  Nc5 {[%clk 0:00:10]} 40. Rh7 {[%clk 0:01:16]}  Rf4 {[%clk 0:00:11]} 41. Kc3 {[%clk 0:01:16]}  Rf3+ {[%clk 0:00:11]} 42. Kc4 {[%clk 0:01:15]}  Rf4 {[%clk 0:00:11]} 43. Kd5 {[%clk 0:01:13]}  h4 {[%clk 0:00:09]} 44. Nc6 {[%clk 0:00:58]}  Rf1 {[%clk 0:00:04]} 45. Nd4 {[%clk 0:00:52]}  Rd1 {[%clk 0:00:03]} 46. Rxh4 {[%clk 0:00:51]}  Kb7 {[%clk 0:00:04]} 47. Rh7+ {[%clk 0:00:51]}  Kb8 {[%clk 0:00:05]} 48. Ke5 {[%clk 0:00:45]}  Rd2 {[%clk 0:00:05]} 49. Nc6+ {[%clk 0:00:44]}  Kc8 {[%clk 0:00:05]} 50. a3 {[%clk 0:00:41]}  Nd7+ {[%clk 0:00:06]} 51. Ke4 {[%clk 0:00:40]}  Nc5+ {[%clk 0:00:06]} 52. Ke5 {[%clk 0:00:41]}  Nd7+ {[%clk 0:00:06]} 53. Ke4 {[%clk 0:00:37]}  Nc5+ {[%clk 0:00:07]} 54. Kf4 {[%clk 0:00:38]}  Rd3 {[%clk 0:00:06]} 55. Ra7 {[%clk 0:00:35]}  Rb3 {[%clk 0:00:04]} 56. Nd4 {[%clk 0:00:29]}  Rd3 {[%clk 0:00:03]} 57. Ke5 {[%clk 0:00:28]}  Rc3 {[%clk 0:00:04]} 58. Kd6 {[%clk 0:00:26]}  Nb7+ {[%clk 0:00:03]} 59. Kd5 {[%clk 0:00:26]}  Kb8 {[%clk 0:00:04]} 60. Ra6 {[%clk 0:00:25]}  Rc5+ {[%clk 0:00:03]} 61. Ke6 {[%clk 0:00:23]}  Kc7 {[%clk 0:00:03]} 62. a4 {[%clk 0:00:20]}  Rc4 {[%clk 0:00:04]} 63. Kd5 {[%clk 0:00:20]}  Nc5 {[%clk 0:00:04]} 64. Ra7+ {[%clk 0:00:20]}  Kb8 {[%clk 0:00:04]} 65. Nc6+ {[%clk 0:00:21]}  Kc8 {[%clk 0:00:04]} 66. Ne7+ {[%clk 0:00:20]}  Kd8 {[%clk 0:00:04]} 67. Nc6+ {[%clk 0:00:21]}  Kc8 {[%clk 0:00:04]} 68. a5 {[%clk 0:00:22]}  Rc1 {[%clk 0:00:04]} 69. axb6 {[%clk 0:00:20]}  Nb7 {[%clk 0:00:05]} 70. Ra8+ {[%clk 0:00:20]}  Kd7 {[%clk 0:00:06]} 71. Ne5+ {[%clk 0:00:20]}  Ke7 {[%clk 0:00:05]} 72. Ra7 {[%clk 0:00:21]}  Kd8 {[%clk 0:00:05]} 73. Rxb7 {[%clk 0:00:20]}  Rd1+ {[%clk 0:00:06]} 74. Ke6 {[%clk 0:00:20]}  Kc8 {[%clk 0:00:07]} 75. Rd7 {[%clk 0:00:20]}  Re1 {[%clk 0:00:06]} 76. Rd5 {[%clk 0:00:20]}  Kb8 {[%clk 0:00:06]} 77. Kd6 {[%clk 0:00:19]}  Kb7 {[%clk 0:00:06]} 78. Nd7 {[%clk 0:00:20]}  Rh1 {[%clk 0:00:06]} 79. Kc5 {[%clk 0:00:19]}  Rc1+ {[%clk 0:00:05]} 80. Kd6 {[%clk 0:00:19]}  Rh1 {[%clk 0:00:06]} 81. Ne5 {[%clk 0:00:19]}  Kxb6 {[%clk 0:00:05]} 82. Nc4+ {[%clk 0:00:20]}  Kb7 {[%clk 0:00:05]} 83. Kc5 {[%clk 0:00:21]}  Rh6 {[%clk 0:00:06]} 84. Rd7+ {[%clk 0:00:21]}  Ka8 {[%clk 0:00:06]} 85. Nd6 {[%clk 0:00:20]}  Rh5+ {[%clk 0:00:06]} 86. Kb6 {[%clk 0:00:19]}  Rh8 {[%clk 0:00:06]} 87. Ra7+ {[%clk 0:00:19]}  Kb8 {[%clk 0:00:07]} 88. Rb7+ {[%clk 0:00:18]}  Ka8 {[%clk 0:00:07]} 89. Rc7 {[%clk 0:00:19]}  Rb8+ {[%clk 0:00:06]} 90. Kc6 {[%clk 0:00:18]}  Rh8 {[%clk 0:00:03]} 91. Rc8+ {[%clk 0:00:18]}  Ka7 {[%clk 0:00:04]} 92. b6+ {[%clk 0:00:17]}  Ka6 {[%clk 0:00:05]} 93. Rxh8 {[%clk 0:00:17]} 1-0


[Site "https://www.chess.com"]

[Event "Titled Tuesday Blitz October 25 Late 2022"]
[White "Gardezi, Arsal"]
[Black "Weisz, Bryan"]
[WhiteFideId "30949521"]
[BlackFideId "30934133"]
[WhiteElo "1906"]
[BlackElo "2263"]
[Result "1-0"]
[Round "10"]
[TimeControl "180+1"]
[Date "2022.10.26"]
[WhiteClock "0:02:02"]
[BlackClock "0:01:59"]

1. Nf3 {[%clk 0:02:56]}  c5 {[%clk 0:02:57]} 2. c4 {[%clk 0:02:56]}  Nf6 {[%clk 0:02:53]} 3. Nc3 {[%clk 0:02:55]}  d5 {[%clk 0:02:53]} 4. cxd5 {[%clk 0:02:55]}  Nxd5 {[%clk 0:02:54]} 5. d4 {[%clk 0:02:53]}  Nxc3 {[%clk 0:02:51]} 6. bxc3 {[%clk 0:02:53]}  cxd4 {[%clk 0:02:50]} 7. cxd4 {[%clk 0:02:54]}  g6 {[%clk 0:02:47]} 8. e3 {[%clk 0:02:48]}  Bg7 {[%clk 0:02:47]} 9. Bd3 {[%clk 0:02:48]}  O-O {[%clk 0:02:47]} 10. O-O {[%clk 0:02:49]}  Nc6 {[%clk 0:02:48]} 11. Rb1 {[%clk 0:02:48]}  e5 {[%clk 0:02:48]} 12. Bb2 {[%clk 0:02:46]}  Bg4 {[%clk 0:02:43]} 13. dxe5 {[%clk 0:02:43]}  Bxf3 {[%clk 0:02:43]} 14. gxf3 {[%clk 0:02:39]}  Nxe5 {[%clk 0:02:43]} 15. Bxe5 {[%clk 0:02:36]}  Bxe5 {[%clk 0:02:43]} 16. f4 {[%clk 0:02:37]}  Bc7 {[%clk 0:02:30]} 17. Rxb7 {[%clk 0:02:34]}  Bb6 {[%clk 0:02:30]} 18. Bc4 {[%clk 0:02:20]}  Qc8 {[%clk 0:02:28]} 19. Bd5 {[%clk 0:02:14]}  Rd8 {[%clk 0:02:23]} 20. Rxf7 {[%clk 0:02:04]}  Rxd5 {[%clk 0:02:09]} 21. Qxd5 {[%clk 0:02:04]}  Qg4+ {[%clk 0:02:10]} 22. Kh1 {[%clk 0:02:03]}  Rd8 {[%clk 0:02:05]} 23. Rd7+ {[%clk 0:02:02]}  Kf8 {[%clk 0:01:59]} 24. Qf7# {[%clk 0:02:02]} 1-0


[Site "https://www.chess.com"]

[Event "Titled Tuesday Blitz October 25 Late 2022"]
[White "Gireman, Ja"]
[Black "Harvey, Marcus R"]
[WhiteFideId "5043794"]
[BlackFideId "400092"]
[WhiteElo "2153"]
[BlackElo "2457"]
[Result "0-1"]
[Round "10"]
[TimeControl "180+1"]
[Date "2022.10.26"]
[WhiteClock "0:00:21"]
[BlackClock "0:00:22"]

1. d4 {[%clk 0:03:00]}  e6 {[%clk 0:02:54]} 2. Nc3 {[%clk 0:03:01]}  d5 {[%clk 0:02:53]} 3. e4 {[%clk 0:03:02]}  Nf6 {[%clk 0:02:53]} 4. Bg5 {[%clk 0:03:02]}  dxe4 {[%clk 0:02:53]} 5. Nxe4 {[%clk 0:03:02]}  Be7 {[%clk 0:02:53]} 6. Bxf6 {[%clk 0:03:03]}  gxf6 {[%clk 0:02:53]} 7. Nf3 {[%clk 0:03:04]}  f5 {[%clk 0:02:54]} 8. Ng3 {[%clk 0:03:03]}  h5 {[%clk 0:02:51]} 9. h4 {[%clk 0:03:01]}  c5 {[%clk 0:02:51]} 10. c3 {[%clk 0:02:52]}  cxd4 {[%clk 0:02:49]} 11. Nxd4 {[%clk 0:02:51]}  Bxh4 {[%clk 0:02:40]} 12. Nxh5 {[%clk 0:02:51]}  Kf8 {[%clk 0:02:33]} 13. Ng3 {[%clk 0:02:45]}  Kg8 {[%clk 0:02:01]} 14. Qf3 {[%clk 0:02:21]}  Bf6 {[%clk 0:01:49]} 15. Rxh8+ {[%clk 0:02:19]}  Bxh8 {[%clk 0:01:50]} 16. O-O-O {[%clk 0:02:19]}  Qg5+ {[%clk 0:01:43]} 17. Kb1 {[%clk 0:02:19]}  Nd7 {[%clk 0:01:43]} 18. Bb5 {[%clk 0:01:59]}  Ne5 {[%clk 0:01:43]} 19. Qe2 {[%clk 0:01:56]}  a6 {[%clk 0:01:42]} 20. Ba4 {[%clk 0:01:42]}  b5 {[%clk 0:01:38]} 21. Bc2 {[%clk 0:01:42]}  Bb7 {[%clk 0:01:35]} 22. Rh1 {[%clk 0:01:29]}  Bg7 {[%clk 0:01:12]} 23. Ndxf5 {[%clk 0:01:23]}  exf5 {[%clk 0:01:06]} 24. Nxf5 {[%clk 0:01:24]}  Qxg2 {[%clk 0:00:50]} 25. Re1 {[%clk 0:01:01]}  Bf6 {[%clk 0:00:37]} 26. Qh5 {[%clk 0:00:52]}  Ng6 {[%clk 0:00:25]} 27. Nd6 {[%clk 0:00:26]}  Bf3 {[%clk 0:00:24]} 28. Nxf7 {[%clk 0:00:21]}  Bxh5 {[%clk 0:00:22]} 0-1


[Site "https://www.chess.com"]

[Event "Titled Tuesday Blitz October 25 Late 2022"]
[White "Hambleton, Aman"]
[Black "Arabidze, Meri"]
[WhiteFideId "2606577"]
[BlackFideId "13604040"]
[WhiteElo "2538"]
[BlackElo "2403"]
[Result "1-0"]
[Round "10"]
[TimeControl "180+1"]
[Date "2022.10.26"]
[WhiteClock "0:00:53"]
[BlackClock "0:01:13"]

1. d4 {[%clk 0:03:00]}  Nf6 {[%clk 0:02:56]} 2. Bf4 {[%clk 0:02:58]}  d5 {[%clk 0:02:52]} 3. e3 {[%clk 0:02:58]}  e6 {[%clk 0:02:52]} 4. Nf3 {[%clk 0:02:58]}  Bd6 {[%clk 0:02:53]} 5. Nbd2 {[%clk 0:02:58]}  c5 {[%clk 0:02:52]} 6. c3 {[%clk 0:02:49]}  O-O {[%clk 0:02:51]} 7. Bd3 {[%clk 0:02:45]}  b6 {[%clk 0:02:48]} 8. Qe2 {[%clk 0:02:40]}  Qc7 {[%clk 0:02:42]} 9. Bxd6 {[%clk 0:02:39]}  Qxd6 {[%clk 0:02:42]} 10. Ne5 {[%clk 0:02:40]}  a5 {[%clk 0:02:39]} 11. O-O {[%clk 0:02:36]}  Ba6 {[%clk 0:02:38]} 12. Bxa6 {[%clk 0:02:36]}  Nxa6 {[%clk 0:02:39]} 13. a4 {[%clk 0:02:28]}  Nc7 {[%clk 0:02:36]} 14. Rfe1 {[%clk 0:02:26]}  Nd7 {[%clk 0:02:27]} 15. f4 {[%clk 0:02:25]}  Nf6 {[%clk 0:02:23]} 16. Qf3 {[%clk 0:02:23]}  Rab8 {[%clk 0:02:19]} 17. g4 {[%clk 0:02:09]}  b5 {[%clk 0:02:07]} 18. axb5 {[%clk 0:02:10]}  Rxb5 {[%clk 0:02:04]} 19. g5 {[%clk 0:01:23]}  Ne4 {[%clk 0:02:03]} 20. Nxe4 {[%clk 0:01:22]}  dxe4 {[%clk 0:02:04]} 21. Qxe4 {[%clk 0:01:23]}  Rxb2 {[%clk 0:01:59]} 22. Nc4 {[%clk 0:01:21]}  Qa6 {[%clk 0:01:35]} 23. Nxb2 {[%clk 0:01:19]}  Nd5 {[%clk 0:01:36]} 24. Nd3 {[%clk 0:01:06]}  Nxc3 {[%clk 0:01:33]} 25. Nxc5 {[%clk 0:01:06]}  Qa7 {[%clk 0:01:25]} 26. Qb7 {[%clk 0:01:05]}  Qxb7 {[%clk 0:01:22]} 27. Nxb7 {[%clk 0:01:06]}  a4 {[%clk 0:01:23]} 28. Ra3 {[%clk 0:01:01]}  Rc8 {[%clk 0:01:13]} 29. Nc5 {[%clk 0:00:53]} 1-0


[Site "https://www.chess.com"]

[Event "Titled Tuesday Blitz October 25 Late 2022"]
[White "Harish, Neeraj"]
[Black "Buchenau, Frank"]
[WhiteFideId "30958130"]
[BlackFideId "4604350"]
[WhiteElo "1815"]
[BlackElo "2157"]
[Result "0-1"]
[Round "10"]
[TimeControl "180+1"]
[Date "2022.10.26"]
[WhiteClock "0:01:21"]
[BlackClock "0:01:23"]

1. c4 {[%clk 0:02:59]}  e5 {[%clk 0:02:59]} 2. Nc3 {[%clk 0:02:57]}  Nf6 {[%clk 0:03:00]} 3. Nf3 {[%clk 0:02:53]}  Nc6 {[%clk 0:02:59]} 4. g3 {[%clk 0:02:52]}  Bb4 {[%clk 0:02:59]} 5. Qc2 {[%clk 0:02:42]}  O-O {[%clk 0:02:55]} 6. d3 {[%clk 0:02:42]}  Nd4 {[%clk 0:02:53]} 7. Qd1 {[%clk 0:02:35]}  Nxf3+ {[%clk 0:02:51]} 8. exf3 {[%clk 0:02:35]}  d5 {[%clk 0:02:48]} 9. cxd5 {[%clk 0:02:31]}  Qxd5 {[%clk 0:02:42]} 10. Bg2 {[%clk 0:02:30]}  Bf5 {[%clk 0:02:38]} 11. O-O {[%clk 0:02:26]}  Qxd3 {[%clk 0:02:37]} 12. Qxd3 {[%clk 0:02:25]}  Bxd3 {[%clk 0:02:38]} 13. Re1 {[%clk 0:02:26]}  Rfe8 {[%clk 0:02:36]} 14. Bg5 {[%clk 0:02:25]}  h6 {[%clk 0:02:29]} 15. Bxf6 {[%clk 0:02:23]}  gxf6 {[%clk 0:02:30]} 16. Rad1 {[%clk 0:02:23]}  Rad8 {[%clk 0:02:29]} 17. f4 {[%clk 0:02:20]}  c6 {[%clk 0:02:26]} 18. Re3 {[%clk 0:02:13]}  Bf5 {[%clk 0:02:12]} 19. fxe5 {[%clk 0:02:02]}  Bxc3 {[%clk 0:02:02]} 20. Rxd8 {[%clk 0:01:34]}  Rxd8 {[%clk 0:02:03]} 21. Bxc6 {[%clk 0:01:34]}  Bxe5 {[%clk 0:01:41]} 22. Bxb7 {[%clk 0:01:31]}  Bh3 {[%clk 0:01:30]} 23. Re1 {[%clk 0:01:29]}  Rb8 {[%clk 0:01:28]} 24. Bg2 {[%clk 0:01:28]}  Bxg2 {[%clk 0:01:27]} 25. Kxg2 {[%clk 0:01:29]}  Rxb2 {[%clk 0:01:26]} 26. a4 {[%clk 0:01:28]}  Bd4 {[%clk 0:01:24]} 27. Rf1 {[%clk 0:01:23]}  a5 {[%clk 0:01:23]} 28. Kf3 {[%clk 0:01:21]}  Ra2 {[%clk 0:01:23]} 0-1


[Site "https://www.chess.com"]

[Event "Titled Tuesday Blitz October 25 Late 2022"]
[White "Javakhadze, Zurab"]
[Black "Zhigalko, Sergei"]
[WhiteFideId "13603647"]
[BlackFideId "13502956"]
[WhiteElo "2381"]
[BlackElo "2662"]
[Result "0-1"]
[Round "10"]
[TimeControl "180+1"]
[Date "2022.10.26"]
[WhiteClock "0:00:01"]
[BlackClock "0:00:03"]

1. d4 {[%clk 0:03:00]}  Nf6 {[%clk 0:02:59]} 2. c4 {[%clk 0:03:00]}  e6 {[%clk 0:03:00]} 3. Nf3 {[%clk 0:03:00]}  b6 {[%clk 0:02:59]} 4. a3 {[%clk 0:03:01]}  Ba6 {[%clk 0:02:59]} 5. Nbd2 {[%clk 0:02:54]}  Bb7 {[%clk 0:02:59]} 6. g3 {[%clk 0:02:50]}  c5 {[%clk 0:02:58]} 7. dxc5 {[%clk 0:02:48]}  bxc5 {[%clk 0:02:58]} 8. Bg2 {[%clk 0:02:49]}  Be7 {[%clk 0:02:55]} 9. O-O {[%clk 0:02:45]}  O-O {[%clk 0:02:55]} 10. Qc2 {[%clk 0:02:42]}  d6 {[%clk 0:02:48]} 11. b4 {[%clk 0:02:37]}  Nbd7 {[%clk 0:02:43]} 12. Bb2 {[%clk 0:02:35]}  h6 {[%clk 0:02:42]} 13. Rfd1 {[%clk 0:02:33]}  Qc7 {[%clk 0:02:40]} 14. Nb3 {[%clk 0:02:11]}  Rfc8 {[%clk 0:02:34]} 15. Na5 {[%clk 0:02:01]}  Be4 {[%clk 0:02:34]} 16. Qc3 {[%clk 0:02:01]}  cxb4 {[%clk 0:02:22]} 17. axb4 {[%clk 0:01:59]}  Rab8 {[%clk 0:02:19]} 18. Ba3 {[%clk 0:01:43]}  Nd5 {[%clk 0:01:39]} 19. Qd2 {[%clk 0:01:41]}  N5f6 {[%clk 0:01:29]} 20. Rac1 {[%clk 0:01:38]}  a6 {[%clk 0:01:12]} 21. Nd4 {[%clk 0:01:30]}  Bxg2 {[%clk 0:01:09]} 22. Kxg2 {[%clk 0:01:31]}  Qb6 {[%clk 0:01:03]} 23. f3 {[%clk 0:01:23]}  Ne5 {[%clk 0:00:54]} 24. Ndb3 {[%clk 0:01:12]}  Nfd7 {[%clk 0:00:33]} 25. h4 {[%clk 0:00:58]}  Nc6 {[%clk 0:00:23]} 26. c5 {[%clk 0:00:55]}  Qb5 {[%clk 0:00:08]} 27. cxd6 {[%clk 0:00:52]}  Bf6 {[%clk 0:00:09]} 28. Nxc6 {[%clk 0:00:29]}  Rxc6 {[%clk 0:00:09]} 29. Rxc6 {[%clk 0:00:27]}  Qxc6 {[%clk 0:00:09]} 30. Na5 {[%clk 0:00:28]}  Qa4 {[%clk 0:00:09]} 31. Qd3 {[%clk 0:00:17]}  Ne5 {[%clk 0:00:07]} 32. Qb3 {[%clk 0:00:13]}  Qxa5 {[%clk 0:00:07]} 33. bxa5 {[%clk 0:00:12]}  Rxb3 {[%clk 0:00:08]} 34. Bc5 {[%clk 0:00:08]}  Nd7 {[%clk 0:00:08]} 35. Bf2 {[%clk 0:00:08]}  Rb2 {[%clk 0:00:07]} 36. Kf1 {[%clk 0:00:08]}  Ra2 {[%clk 0:00:07]} 37. Be1 {[%clk 0:00:06]}  Be5 {[%clk 0:00:04]} 38. f4 {[%clk 0:00:06]}  Ra1 {[%clk 0:00:04]} 39. Rd3 {[%clk 0:00:05]}  Bf6 {[%clk 0:00:03]} 40. Rb3 {[%clk 0:00:05]}  g5 {[%clk 0:00:03]} 41. hxg5 {[%clk 0:00:04]}  hxg5 {[%clk 0:00:04]} 42. Rb7 {[%clk 0:00:01]}  Nc5 {[%clk 0:00:03]} 43. Rb8+ {[%clk 0:00:01]}  Kg7 {[%clk 0:00:03]} 0-1


[Site "https://www.chess.com"]

[Event "Titled Tuesday Blitz October 25 Late 2022"]
[White "Jensen, Matthew R"]
[Black "Sailer, Mike"]
[WhiteFideId "2018110"]
[BlackFideId "2012901"]
[WhiteElo "2300"]
[BlackElo "2109"]
[Result "0-1"]
[Round "10"]
[TimeControl "180+1"]
[Date "2022.10.26"]
[WhiteClock "0:00:07"]
[BlackClock "0:00:08"]

1. d4 {[%clk 0:03:00]}  d5 {[%clk 0:02:59]} 2. c4 {[%clk 0:03:00]}  Bf5 {[%clk 0:02:58]} 3. cxd5 {[%clk 0:02:54]}  Bxb1 {[%clk 0:02:58]} 4. Rxb1 {[%clk 0:02:54]}  Qxd5 {[%clk 0:02:57]} 5. b3 {[%clk 0:02:48]}  Nc6 {[%clk 0:02:56]} 6. Nf3 {[%clk 0:02:48]}  O-O-O {[%clk 0:02:53]} 7. e3 {[%clk 0:02:42]}  e5 {[%clk 0:02:54]} 8. Bc4 {[%clk 0:02:41]}  Bb4+ {[%clk 0:02:38]} 9. Bd2 {[%clk 0:02:38]}  Bxd2+ {[%clk 0:02:33]} 10. Qxd2 {[%clk 0:02:36]}  Qe4 {[%clk 0:02:34]} 11. Bd3 {[%clk 0:02:21]}  Qg4 {[%clk 0:02:25]} 12. O-O {[%clk 0:01:45]}  e4 {[%clk 0:01:54]} 13. h3 {[%clk 0:01:29]}  Qg6 {[%clk 0:01:29]} 14. Nh4 {[%clk 0:01:17]}  Qf6 {[%clk 0:01:10]} 15. Bxe4 {[%clk 0:01:14]}  Qxh4 {[%clk 0:01:11]} 16. Bxc6 {[%clk 0:01:15]}  bxc6 {[%clk 0:01:11]} 17. Rbc1 {[%clk 0:01:07]}  Ne7 {[%clk 0:01:09]} 18. Qa5 {[%clk 0:01:04]}  Rd5 {[%clk 0:00:50]} 19. Qxa7 {[%clk 0:00:59]}  Kd7 {[%clk 0:00:51]} 20. Qa6 {[%clk 0:00:42]}  h5 {[%clk 0:00:48]} 21. Qe2 {[%clk 0:00:35]}  Rh6 {[%clk 0:00:46]} 22. e4 {[%clk 0:00:34]}  Rxd4 {[%clk 0:00:37]} 23. e5 {[%clk 0:00:32]}  Rg6 {[%clk 0:00:26]} 24. Rcd1 {[%clk 0:00:30]}  Rd5 {[%clk 0:00:27]} 25. Qf3 {[%clk 0:00:24]}  f6 {[%clk 0:00:18]} 26. e6+ {[%clk 0:00:20]}  Kxe6 {[%clk 0:00:16]} 27. Rfe1+ {[%clk 0:00:21]}  Kd7 {[%clk 0:00:15]} 28. Qe3 {[%clk 0:00:20]}  f5 {[%clk 0:00:10]} 29. Kh2 {[%clk 0:00:12]}  Qf6 {[%clk 0:00:10]} 30. Rxd5+ {[%clk 0:00:10]}  cxd5 {[%clk 0:00:11]} 31. Qc5 {[%clk 0:00:11]}  Qd6+ {[%clk 0:00:11]} 32. Qxd6+ {[%clk 0:00:11]}  Kxd6 {[%clk 0:00:11]} 33. Re3 {[%clk 0:00:11]}  Re6 {[%clk 0:00:12]} 34. Rd3 {[%clk 0:00:11]}  c5 {[%clk 0:00:12]} 35. Rd2 {[%clk 0:00:11]}  d4 {[%clk 0:00:12]} 36. Kg3 {[%clk 0:00:12]}  Kd5 {[%clk 0:00:12]} 37. Kf4 {[%clk 0:00:12]}  Re4+ {[%clk 0:00:11]} 38. Kg5 {[%clk 0:00:11]}  g6 {[%clk 0:00:09]} 39. f3 {[%clk 0:00:10]}  Re3 {[%clk 0:00:09]} 40. Kf6 {[%clk 0:00:10]}  d3 {[%clk 0:00:08]} 41. a4 {[%clk 0:00:08]}  Kd4 {[%clk 0:00:08]} 42. a5 {[%clk 0:00:09]}  Kc3 {[%clk 0:00:09]} 43. Rd1 {[%clk 0:00:09]}  Re2 {[%clk 0:00:07]} 44. Ra1 {[%clk 0:00:08]}  d2 {[%clk 0:00:08]} 45. a6 {[%clk 0:00:07]}  Re1 {[%clk 0:00:08]} 0-1


[Site "https://www.chess.com"]